Cogmind - Beta 16 @@@ ROGUE MODE // 2025.12.26 @ 08:38:12 Player: shapeshifter Result: Destroyed by 8E-BFV(R) with Subdweller Beam Cannon Performance ------------- Evolutions (0) 0 Regions Visited (2) 400 Robots Destroyed (24) 120 Value Destroyed (528) 528 Prototype IDs (0) 0 Alien Tech Used (0) 0 Bonus (0) 0 TOTAL SCORE: 1048 Bonus ------- None Cogmind --------- Core Integrity 0/250 Matter 196/300 Energy 93/100 System Corruption 0% Temperature Cool (9) Movement Rolling (160) Ox5 Location -10/Subcaves Parts ------- > --- POWER (1) -------- (None) > --- PROPULSION (2) --- Subdweller Monowheel > --- UTILITY (2) ------ Large Storage Unit Huge Storage Unit > --- WEAPON (2) ------- Subdweller Machine Gun Subdweller Machine Gun > --- INVENTORY (25) --- Compact Wheel Subdweller Monowheel Heat Sink Improved Heat Sink Weight Redist. System Visual Processing Unit Subdweller Optics Improved Terrain Scanner Makeshift System Restoration Module Grenade Launcher Enhanced Flamer Scrap Shield Fragment (49) Scrap Shield Fragment (46) Peak State ------------ > --- POWER ------------ Makeshift Power Source > --- PROPULSION ------- Spiked Treads Compact Wheel > --- UTILITY ---------- Large Storage Unit Medium Armor Plating > --- WEAPON ----------- Medium Laser Light Assault Rifle > --- INVENTORY -------- Subdweller Power Source Heat Sink Improved Heat Sink Huge Storage Unit Weight Redist. System Visual Processing Unit Subdweller Optics Improved Terrain Scanner Medium Armor Plating Light Assault Rifle Grenade Launcher Enhanced Flamer Scrap Shield Fragment Scrap Shield Fragment [Rating: 14] Favorites ----------- Power Light Ion Engine Engine Light Ion Engine Propulsion Light Treads Treads Light Treads Wheel Compact Wheel Utility Large Storage Unit Device Seismic Detector Storage Large Storage Unit Protection Medium Armor Plating Weapon Small Laser Energy Gun Small Laser Ballistic Gun Assault Rifle Launcher Grenade Launcher Build | -11 -10 -10 ------- Run | Yrd Mat Sub Slots Evolved . | . . . Power . | . . . Propulsion . | . . . Utility . | . . . Weapon . | . . . Parts Attached 29 | 7 4 18 Power 5 | 1 2 2 Engine 5 | 1 2 2 Core . | . . . Reactor . | . . . Propulsion 8 | 2 . 6 Treads 3 | 2 . 1 Leg . | . . . Wheel 5 | . . 5 Hover . | . . . Flight . | . . . Utility 8 | 2 2 4 Device 1 | 1 . . Storage 3 | 1 1 1 Processor . | . . . Hackware . | . . . Protection 4 | . 1 3 Artifact . | . . . Weapon 8 | 2 . 6 Energy Gun 2 | 1 . 1 Energy Cannon . | . . . Ballistic Gun 5 | 1 . 4 Ballistic Cannon . | . . . Launcher 1 | . . 1 Special Weapon . | . . . Impact Weapon . | . . . Slashing Weapon . | . . . Piercing Weapon . | . . . Special Melee Weapon . | . . . Unidentified Prototypes . | . . . Parts Lost 14 | . 1 13 Power 2 | . 1 1 Propulsion 5 | . . 5 Utility 4 | . . 4 Weapon 3 | . . 3 Highest Loss Streak 5 | . 1 5 To Critical Strikes 1 | . . 1 Average Backups 9 | 3 9 11 Power . | . . . Propulsion 1 | 1 1 . Utility 6 | . 4 8 Weapon 2 | . 2 2 Tool/Special . | . . . Unused Backups 18 | . 6 12 Power . | . . . Propulsion 2 | . 1 1 Utility 13 | . 3 10 Weapon 3 | . 2 1 Tool/Special . | . . . Average Slot Usage (%) 97 | . 99 94 Engine 13 | . 13 12 Treads 18 | . 28 8 Wheel 7 | . . 15 Device 6 | . 12 . Storage 14 | . 14 14 Protection 7 | . 1 13 Energy Gun 10 | . 14 7 Ballistic Gun 16 | . 14 20 Peak Build Rating 14 | 7 10 14 Average Rating 9 | 5 8 12 On Entrance 5 | . 7 10 Avg Prop Armor Cover (%) 8 | . . 8 Naked Turns . | . . . Heaviest Build 35 | 12 35 35 Greatest Support 40 | 40 40 40 Greatest Overweight (x) 11 | . . 11 Average Overweight (x) . | . . 1 Largest Inventory Capacity 25 | 8 15 25 Average Capacity 13 | 7 12 15 Most Carried 15 | 7 15 15 Average Carried 10 | 3 9 13 Final Capacity 25 | 8 15 25 Final Carried 15 | 6 15 13 Class Distribution -------------------- 100% | Mutant Dominant Class ---------------- Mutant | -10/Materials Mutant | -10/Subcaves Resources | -11 -10 -10 ----------- Run | Yrd Mat Sub Matter Collected 715 | 291 118 306 Remotely . | . . . Salvage Created 803 | 116 408 279 Parts 67 | 11 39 17 Haulers Intercepted 1 | . 1 . Recyclers Shooed 1 | 1 . . Parts Field Recycled . | . . . Retrieved Matter . | . . . Parts Self-Destructed 3 | . . 3 Prevented . | . . . Parts Restored . | . . . Kills | -11 -10 -10 ------- Run | Yrd Mat Sub Combat Hostiles Destroyed 14 | . 8 6 Guns 14 | . 8 6 Classes Destroyed 10 | 2 6 2 Worker 3 | . 3 . Builder 1 | . 1 . Tunneler 2 | 2 . . Hauler 1 | . 1 . Recycler 1 | 1 . . Watcher 2 | . 2 . Swarmer 3 | . 3 . Grunt 5 | . 5 . Artisan 1 | . . 1 Subdweller 6 | . . 6 Best Kill Streak 3 | 2 3 2 Combat Bots Only 2 | . 2 2 Max Kills in Single Turn 1 | 1 1 1 Gunslinging . | . . . Exploded . | . . . Melee . | . . . Uniques/NPCs Destroyed . | . . . Combat | -11 -10 -10 -------- Run | Yrd Mat Sub Hostile Shots Fired 141 | . 63 78 Missed 44 | . 21 23 Hits 97 | . 42 55 Projectile 97 | . 42 55 Critical Strikes 4 | . 1 3 Damage Taken 1952 | . 608 1344 Core 277 | . 59 218 Absorbed by Shields . | . . . Core Remaining (%) 100 | 100 . . Volleys Fired 123 | 7 52 64 Largest 2 | 2 2 2 Hottest 70 | 60 60 70 Shots Fired 241 | 14 104 123 Gun 237 | 14 104 119 Cannon . | . . . Launcher 4 | . . 4 Special . | . . . Kinetic 149 | 7 52 90 Thermal 88 | 7 52 29 Explosive 4 | . . 4 Electromagnetic . | . . . Robot Hit Streak 24 | 3 8 24 Robot Miss Streak 4 | 2 4 2 Penetration Max . | . . . Secondary Targets 1 | . 1 . Max Gunslinging Chain 1 | . 1 . Shots Hit Robots 151 | 6 56 89 Core Hits 53 | 4 25 24 Critical Kills . | . . . Critical Parts Destroyed . | . . . Critical Strikes 1 | . . 1 Burn 1 | . . 1 Melee Attacks . | . . . Impact . | . . . Slashing . | . . . Piercing . | . . . Sneak Attacks . | . . . Combat Hostiles . | . . . Follow-up Attacks . | . . . Damage Inflicted 1575 | 69 702 804 Guns 1575 | 69 702 804 Cannons . | . . . Explosions . | . . . Melee . | . . . Ramming . | . . . Kinetic 1025 | 47 397 581 Thermal 550 | 22 305 223 Explosive . | . . . Electromagnetic . | . . . Impact . | . . . Slashing . | . . . Piercing . | . . . Highest Corruption . | . . . Average Corruption . | . . . Corruption Purged . | . . . Corruption Blocked . | . . . Overload Shots . | . . . Overflow Damage . | . . . Projectiles . | . . . Explosions . | . . . Melee . | . . . Knockbacks . | . . . Impact . | . . . Kinetic . | . . . Secondary . | . . . Self-Inflicted Damage 14 | . . 14 Shots 1 | . . 1 Rammed . | . . . Targets Rammed . | . . . Kicked . | . . . Crushed . | . . . Highest Temperature 138 | . 138 6 Average Temperature 61 | . 66 4 Received Heat Transfer 438 | . 228 210 Siege Activations . | . . . Martial Activations . | . . . Shielding Activations . | . . . Robots Disrupted . | . . . Combat Hostiles . | . . . Robots Corrupted . | . . . Combat Hostiles . | . . . Parts Fried . | . . . Impact Corruptions . | . . . Robots Melted . | . . . Combat Hostiles . | . . . Parts Melted 6 | . . 6 Heat Transferred 1382 | 50 675 657 Parts Sabotaged . | . . . Parts Stolen . | . . . Parts Stripped . | . . . Power Chain Reactions . | . . . Alert | -11 -10 -10 ------- Run | Yrd Mat Sub Maximum Alert Level . | . . . Low Security (%) 100 | 100 100 . Level 1 . | . . . Level 2 . | . . . Level 3 . | . . . Level 4 . | . . . Level 5 . | . . . High Security . | . . . Max Security . | . . . Peak Influence 65 | 10 65 . Initial . | . . . Average 11 | 1 12 . Influence Increases 286 | 15 271 . Destroy 0b10 Robot/C 160 | . 160 . Destroy 0b10 Robot/NC 50 | 15 35 . Destroy Leader 36 | . 36 . Successful Hack 25 | . 25 . Lose Combat Pursuer 15 | . 15 . Influence Decreases 286 | 15 229 42 Entered New Map 21 | . . 21 Time Decay 255 | 15 219 21 Lost Part 10 | . 10 . Squads Dispatched 1 | . 1 . Investigation 1 | . 1 . Extermination . | . . . Reinforcement . | . . . Assault . | . . . Garrison . | . . . Intercept . | . . . Searches Triggered . | . . . Construction Impeded . | . . . Haulers Reinforced . | . . . Active Scanning Responses . | . . . Cargo Convoy Interrupts . | . . . Stealth | -11 -10 -10 --------- Run | Yrd Mat Sub Distress Signals 1 | . 1 . Communications Jammed . | . . . Distress Signals . | . . . Times Spotted 24 | . 16 8 Peak Tracking Total 3 | . 3 2 Tactical Retreats 1 | . 1 . Traps | -11 -10 -10 ------- Run | Yrd Mat Sub Traps Triggered 5 | . 2 3 Indirectly . | . . . Trap Hack Attempts . | . . . Triggered . | . . . Disarmed . | . . . Reprogrammed . | . . . Reused . | . . . Traps Extracted . | . . . Installed . | . . . Triggered . | . . . Machines | -11 -10 -10 ---------- Run | Yrd Mat Sub Machines Disabled . | . . . Max in Single Turn . | . . . Machines Repaired . | . . . Machines Dismantled . | . . . Machines Sabotaged . | . . . Overloaded Fab Kills . | . . . Hacking | -11 -10 -10 --------- Run | Yrd Mat Sub Machines Accessed 8 | . 8 . Terminals 7 | . 7 . Fabricators . | . . . Repair Stations . | . . . Recycling Units 1 | . 1 . Scanalyzers . | . . . Garrison Access . | . . . Total Hacks 19 | . 19 . Successful 9 | . 9 . Failed 10 | . 10 . Catastrophic . | . . . Database Lockouts . | . . . Manual 17 | . 17 . Terminals 18 | . 18 . Fabricators . | . . . Repair Stations . | . . . Recycling Units 1 | . 1 . Scanalyzers . | . . . Garrison Access . | . . . Terminal Hacks . | . . . Fabricator Hacks . | . . . Repair Station Hacks . | . . . Recycling Unit Hacks 1 | . 1 . Retrieve Components 1 | . 1 . Scanalyzer . | . . . Garrison Access Hacks . | . . . Unauthorized Hacks 8 | . 8 . Terminals 8 | . 8 . Botnet 2 | . 2 . Operators 1 | . 1 . Skim 5 | . 5 . Fabricators . | . . . Repair Stations . | . . . Recycling Units . | . . . Scanalyzers . | . . . Garrison Access . | . . . Data Cores Recovered . | . . . Used . | . . . Hacking Detections 8 | . 8 . Full Trace Events . | . . . Feedback Events . | . . . Feedback Blocked . | . . . Robot Schematics Acquired . | . . . Robots Built . | . . . Authchips . | . . . Time . | . . . Total Robot Build Rating . | . . . Part Schematics Acquired . | . . . Parts Built . | . . . Authchips . | . . . Time . | . . . Total Part Build Rating . | . . . Part Studies Acquired . | . . . Parts Repaired . | . . . Time . | . . . Parts Recycled . | . . . Recycled Matter . | . . . Retrieved Matter . | . . . Retrieved Components 10 | . 10 . Parts Scanalyzed . | . . . Part Schematics Acquired . | . . . Parts Damaged . | . . . Bothacking | -11 -10 -10 ------------ Run | Yrd Mat Sub Used RIF Installer . | . . . Robots Hacked . | . . . Non-combat . | . . . Combat . | . . . Robot Hacks Applied . | . . . Relay Couplers Released . | . . . Fabnet Peak Effective % . | . . . Robots Rewired . | . . . Allies Hacked . | . . . Hacks Repelled . | . . . Allies | -11 -10 -10 -------- Run | Yrd Mat Sub Total Allies . | . . . Largest Group . | . . . Highest-Rated Group . | . . . Highest-Rated Ally . | . . . Total Orders . | . . . Ally Attacks . | . . . Total Damage . | . . . Kills . | . . . Allies Corrupted . | . . . Allies Melted . | . . . Intel | -11 -10 -10 ------- Run | Yrd Mat Sub Active Infowar (turns) 1285 | 11 1274 . Seismic 1285 | 11 1274 . Robot Analysis Total . | . . . Derelict Logs Recovered . | . . . Drone Launches . | . . . Drone Recoveries . | . . . Exploration | -11 -10 -10 ------------- Run | Yrd Mat Sub Turns Passed 2852 | 132 1397 1323 Spaces Moved 1480 | 67 579 834 Core 20 | 14 . 6 Treads 703 | 53 579 71 Legs . | . . . Wheels 757 | . . 757 Hover . | . . . Flight . | . . . Fastest Speed 50 | 50 160 105 Average Speed 140 | 137 160 127 Slowest Speed 600 | 160 160 600 Overloaded Moves . | . . . Propulsion Burnouts . | . . . Robots Hopped . | . . . Potential Cave-ins . | . . . Cave-ins Triggered . | . . . Exploration Rate (%) 43 | 5 81 45 Regions Visited 2 Branch Regions 1 Pre-discovered Areas 3 | . 2 1 Known Exits Taken 1 | . 1 . Unknown Exits Taken 1 | 1 . . Scrap Searched 2 | . . 2 Spaces Dug . | . . . Terrain Destroyed 18 | . . 18 Melee . | . . . Projectile . | . . . AOE 18 | . . 18 Terrain Rammed . | . . . Walls Destroyed . | . . . Machines Disabled . | . . . Actions | -11 -10 -10 --------- Run | Yrd Mat Sub Total 2027 | 93 951 983 Wait 325 | . 290 35 Move 1478 | 66 578 834 Hop . | . . . Pick Up 47 | 13 18 16 Fast Attach . | . . . Attach 23 | 7 2 14 Detach . | . . . Swap 13 | . 2 11 Drop 18 | . 9 9 Fire 123 | 7 52 64 Melee . | . . . Ram . | . . . Kick . | . . . Crush . | . . . Escape Stasis . | . . . Rewire . | . . . Trap . | . . . Miscellaneous . | . . . Route ------- -11/Scrapyard -10/Materials (discovered 6 exits: *Mat x3 / *Min x2 / *Sub) -10/Subcaves History --------- Turn | Location | Event 5 | -11/Scrapyard | Discovered new exit (range 15) 133 | -11/Scrapyard | Entered Materials 265 | -10/Materials | Discovered new exit (range 3) 314 | -10/Materials | Build established: Mutant 469 | -10/Materials | Discovered new exit (range 12) 628 | -10/Materials | Discovered new exit (range 15) 729 | -10/Materials | Learned 4 Subcaves zone layouts 773 | -10/Materials | Learned location of 1 exit from Recycling 846 | -10/Materials | Identified exit to Mines 869 | -10/Materials | Identified exit to Materials 869 | -10/Materials | Identified exit to Subcaves 900 | -10/Materials | Learned 2 Storage zone layouts 1530 | -10/Materials | Entered Subcaves 1531 | -10/Subcaves | Approached by a straggling Scientist 1643 | -10/Subcaves | Ambushed by Subdwellers from Twisted Machinery 1695 | -10/Subcaves | Lost 3 parts (2n1u) 1771 | -10/Subcaves | Core integrity fell below 50% 1803 | -10/Subcaves | Lost 4 parts (1n1u2w) 1964 | -10/Subcaves | Disturbed a concealed Subdweller 2150 | -10/Subcaves | Shifting Twisted Machinery released Shrapnel Trap 2155 | -10/Subcaves | Shifting Twisted Machinery released Spk. Treads 2323 | -10/Subcaves | Learned location of Zion (-6) 2323 | -10/Subcaves | Met a Zionite searching for "candidates" 2630 | -10/Subcaves | Core integrity fell below 20% 2768 | -10/Subcaves | Lost 5 parts (1p2n1u1w) 2853 | -10/Subcaves | Destroyed by 8E-BFV(R) with Subdweller Beam Cannon Last Messages --------------- 02706_ OH-ETV(R) affixes Scrap Shield Fragment to Scrap Shield. 02710_ Lgt. Assault Rifle destroyed. 02712_ Med. Armor Plating destroyed. 02717_ Wheel destroyed. 02719_ V1-RDZ(R) suffers critical hit (Burn). 02730_ Sub. Monowheel melted. 02730_ V1-RDZ(R) destroyed. 02737_ Spk. Treads destroyed. 02741_ Sub. Power Source melted. 02741_ Sub. Optics melted. 02741_ OH-ETV(R) destroyed. 02747_ Acquired Sub. Monowheel. 02749_ Acquired 33 matter. 02751_ Acquired 50 matter. 02755_ Acquired Mak. System Restoration Module. 02758_ Acquired Sub. Machine Gun. 02765_ Dropped Lgt. Assault Rifle. 02766_ Dropped Med. Laser. 02776_ Acquired 10 matter. 02849_ Med. Armor Plating destroyed. Map ----- +----------------------------------------------------+ | ??????????????????????????????????# ### ##?##?## | | ??????????????????????????????????# ### #?#?? # | | ?????????????????????????????????????????????????? | | ?????????????????????????????????????????????????? | | ?????????????????????????????????????????????????? | | ?????????????????????????????????????????????????? | | ?????????????????????????????????????????????????? | | ???????????????????????????????????????????#?????? | | ??????????????????????????????????????????? ##???? | | ???????????????????????????????????####????# #???? | | ??????????????????????????????" ### ""##?## ###?? | | ?????????????????????????????" "" ## #?? | | ?????????????????????????????? " # #??? | | ?????????????????????????????? ????# " # #??? | | ?????????????????????????????? ????## #??? | | ?????????????????????????????? #????# ##?? | | ?????????????????###?????????? ????## #?? | | ??????????????#### #????????# ?????# ##? | | ??????????????# #??????? ""#?????# ### ## | | ???????????????? ##????? "##???# ###?# # | | ????????????????? ????? ##?# #???## # | | ??????????????????? ????? ## ??### ## | | ????????????????????# ?????# #### #?## ##? | | ?????????????????????? ##?### ##?##?## ##? | | ???????????????????????# ### ##???# ## | | ??????????????????????## @ #??## # | | ?????????????????????#; R ##?## ## | | ?????????????????????## # ##??# #####? | | ?????????????????????# ##### ##??# ##????? | | ????????????????????# #???# #### ##????? | | ?????????????????? #???# ## ##??## | | ????????????????# ##???# ## # ## # | | ????????????????# #?????## ##"" & #? | | ??????????????? ???????# # ##? | | ????????????? ??????## """ #?? | | ????????????## ##??????# " #?? | | ?????????????# #???????## ## # [ ##?? | | ?????????????# ????###### [ ##??? | | ????????????? ## # ## #???? | | #???????????? ### [ #? ##???? | | ###??????????????## && #? ##????? | | #????????????????? ## # # # ## !& ####?????? | | #???????????????????????????#?# ?#! ! #???????? | | ##?????????????????????????????#?## ##??????? | | #??????????????????????????????### ###????? | | #?????????????????????????????# # #????? | | #?????????????????????????????# # # #????? | | ##?????????????????????????????## ## ###???? | | #???????????????????????????????###### #???? | | ????????????????????????????????????# #???? | +----------------------------------------------------+ Best States ------------- Heat Dissipation 25 Energy Generation 15 Energy Capacity 250 Matter Stores 300 Matter Capacity 300 Sight Range 16 Terrain Scan Density 10 Armor Coverage 225 Evasion (%) 50 Recoil Reduction 2 Item Schematics ----------------- None Robot Schematics ------------------ None Fabricated ------------ Nothing Repaired ---------- Nothing Studied --------- None Alien Tech Used ----------------- None Achievements -------------- None Challenges ------------ None Game ------ Seed HellfireCommKatana Manual? 0 Play Time 00:13:19 Cumulative 627.0 hours Start 2025.12.20 @ 07:42:30 End 2025.12.26 @ 08:38:12 Sessions 2 Manual Loads 0 Difficulty Rogue Special Mode None Game No. 795 Rogue 795 Adventurer 0 Explorer 0 Win Type - Total 23 Types 10/1/3/3/2/0/2/2/0/0 Lore% 96 Gallery% 92 Achievement% 80 Wizard Run 0 Options --------- Layout 0 ASCII 0 Keyboard 0 Movement Mouse Keybinds 0 Fullscreen 1 Font 24/Terminus Map View 76x50 Zoom Use 0% Tactical HUD 1 Map Filters NONE Filters NONE Steam 1 RUN: e2867fff-48c7-4769-b80b-95c74ceeba6c